bitfinex/quotes_SOLUSD_20240725
["timestamp","ask_amount","ask_price","bid_price","bid_amount"]
[1721877404958,5.8826,170.0,169.92,5.8848]
[1721877405151,32.97,170.01,169.89,1.17674035]
[1721877405342,39.59780899,170.03,169.91,5.8852]
[1721877405666,39.59780899,170.03,169.88,15.2671]
[1721877405667,32.97,169.99,169.88,15.2671]
[1721877405959,5.8852,169.92,169.88,15.2671]
[1721877406457,5.8854,169.91,169.88,15.2671]
[1721877406838,5.8854,169.91,169.86,6.5168]
[1721877407745,5.885,169.93,169.86,6.5168]
[1721877407940,5.885,169.93,169.86,12.4039]
[1721877408547,5.8851,169.92,169.86,12.4039]
[1721877408752,32.97,169.95,169.86,12.4039]
[1721877408753,0.50095931,169.91,169.86,6.5168]
[1721877408947,32.97,169.95,169.84,16.0584]
[1721877408948,5.8863,169.89,169.84,16.0584]
[1721877409148,5.8866,169.88,169.84,16.0584]
[1721877409360,0.50095931,169.94,169.84,16.0584]
[1721877409556,32.97,169.95,169.84,16.0584]
[1721877409957,5.8839,169.96,169.85,1.17707549]
[1721877410152,5.8832,169.98,169.91,6.0662]
[1721877410467,5.8835,169.97,169.92,45.0]
[1721877410683,5.8843,169.95,169.91,6.0662]
[1721877410859,5.8847,169.93,169.91,6.0662]
[1721877411061,5.8847,169.93,169.87,6.5153]
[1721877411257,5.8847,169.93,169.88,45.0]
[1721877411569,5.8851,169.92,169.88,45.0]
[1721877411867,5.8851,169.92,169.87,6.5153]
[1721877412044,5.8847,169.93,169.87,12.402]
[1721877412444,5.8842,169.95,169.88,1.17711609]
[1721877412743,32.97,170.0,169.92,5.885]
[1721877412944,5.8834,169.97,169.89,1.17687359]
[1721877413174,5.8834,169.97,169.9,1.17681591]
[1721877413464,32.97,170.0,169.88,45.0]
[1721877413465,5.8837,169.96,169.88,45.0]
[1721877413662,51.12095931,170.0,169.88,45.0]
[1721877414241,5.8848,169.93,169.87,6.5153]
[1721877414649,5.8848,169.93,169.87,12.4019]
[1721877414850,5.8844,169.95,169.88,5.8864]
[1721877415256,5.8844,169.94,169.88,5.8864]
[1721877415469,5.8848,169.93,169.87,12.4021]
[1721877415953,5.8848,169.93,169.88,45.0]
[1721877416153,35.2143,169.95,169.88,50.8864]
[1721877416355,5.8844,169.94,169.88,50.8864]
[1721877416672,29.33,169.92,169.87,6.5153]
[1721877416858,6.38635931,169.91,169.87,6.5153]
[1721877417055,5.8854,169.91,169.87,6.5153]
[1721877417684,29.33,169.92,169.87,6.5153]
[1721877418869,35.2152,169.92,169.87,6.5153]
[1721877420174,0.50095931,169.97,169.87,6.5153]
[1721877420379,5.8832,169.98,169.92,5.8849]
[1721877420561,5.8832,169.98,169.92,5.885]
[1721877420562,35.213,169.98,169.92,5.885]
[1721877420756,29.33,169.98,169.89,5.8861]
[1721877420967,29.33,169.98,169.9,45.0]
[1721877421164,29.33,169.98,169.93,5.8847]
[1721877421367,29.33,169.98,169.94,50.8843]
[1721877421570,6.12816921,169.99,169.94,50.8843]
[1721877421782,424.4121,170.01,169.94,50.8841]
[1721877421957,418.53,170.01,169.94,50.8841]
[1721877422165,418.53,170.01,169.94,45.0]
[1721877422166,5.8827,169.99,169.94,45.0]
[1721877422364,389.2,170.01,169.94,50.8843]
[1721877422773,33.48095931,170.0,169.87,7.69185636]
[1721877422978,5.885,169.93,169.87,6.5153]
[1721877423283,57.31763907,170.0,169.87,6.5153]
[1721877423464,5.8853,169.92,169.87,6.5153]
[1721877423659,5.8835,169.97,169.91,5.8854]
[1721877423854,5.8835,169.97,169.87,6.5153]
[1721877423855,32.98,170.0,169.88,1.17677429]
[1721877424082,47.683,170.04,169.88,1.17677429]
[1721877424380,5.8824,170.0,169.88,1.17677429]
[1721877424589,5.8827,169.99,169.88,21.17677429]
[1721877424879,0.50095931,170.03,169.89,45.0]
[1721877425061,0.50095931,170.03,169.88,21.17677429]
[1721877425255,21.33954845,170.04,169.88,21.17677429]
[1721877425966,5.8834,169.97,169.9,5.8855]
[1721877426486,5.8834,169.97,169.91,50.8853]
[1721877426667,5.8829,169.99,169.92,5.885]
[1721877426983,16.98193369,170.03,169.93,45.0]
[1721877427164,5.8819,170.02,169.94,1.176561]
[1721877427366,5.8819,170.02,169.95,21.5913]
[1721877427556,5.8819,170.02,169.96,45.0]
[1721877427777,5.882,170.01,169.96,45.0]
[1721877428573,0.50095931,170.05,169.95,21.5913]
[1721877428884,17.00525035,170.06,169.95,21.5913]
[1721877429087,10.61229104,170.05,169.95,21.5913]
[1721877429279,11.11325035,170.05,169.95,21.5913]
[1721877429778,5.8823,170.0,169.95,21.5913]
[1721877429971,5.8827,169.99,169.95,21.5913]
[1721877430171,32.98,169.97,169.86,6.5306]
[1721877430479,0.50095931,169.96,169.86,6.5306]
[1721877430667,5.8858,169.91,169.86,6.5306]
[1721877431071,0.50095931,169.9,169.79,28.1298]
[1721877431380,5.8868,169.88,169.79,22.2404]
[1721877431563,5.8858,169.9,169.84,5.8878]
[1721877431982,32.98,169.93,169.85,5.8875]
[1721877432284,0.50095931,169.96,169.86,5.8871]
[1721877432489,0.50095931,169.95,169.8,1.17736592]
[1721877432798,5.8858,169.9,169.8,21.17736592]
[1721877432961,5.8858,169.9,169.81,45.0]
[1721877433293,5.8858,169.9,169.85,5.8875]
[1721877433482,5.8858,169.9,169.86,45.0]
[1721877433783,5.8844,169.94,169.88,22.0046]
[1721877434088,5.8847,169.93,169.88,16.1182]
[1721877435366,5.8847,169.93,169.88,22.0046]
[1721877435581,5.8844,169.94,169.88,22.0046]
[1721877436272,5.884,169.96,169.89,5.886]
[1721877436462,5.8842,169.95,169.89,50.886]
[1721877436789,10.61546006,169.99,169.89,45.0]
[1721877436964,5.8854,169.91,169.89,45.0]
[1721877437161,5.8854,169.91,169.88,16.1182]
[1721877437387,5.885,169.93,169.88,16.1182]
[1721877437900,0.50095931,169.96,169.88,16.1182]
[1721877437901,5.8852,169.92,169.88,16.1182]
[1721877438212,0.50095931,169.91,169.88,16.1182]
[1721877438374,11.11806838,169.96,169.87,6.008]
[1721877438584,5.8854,169.91,169.87,6.008]
[1721877439092,0.50095931,169.96,169.87,6.008]
[1721877439274,0.50095931,169.95,169.87,6.008]
[1721877439470,5.8847,169.94,169.87,11.8948]
[1721877439670,14.7087,169.97,169.88,45.0]
[1721877439867,5.8855,169.91,169.87,6.008]
[1721877440068,5.885,169.93,169.87,6.008]
[1721877440294,5.885,169.93,169.87,11.8948]
[1721877440596,5.885,169.93,169.88,5.8864]
[1721877440973,5.885,169.93,169.87,6.008]
[1721877441176,5.8851,169.92,169.88,45.0]
[1721877441367,5.8847,169.94,169.88,45.0]
[1721877441569,5.8849,169.93,169.88,45.0]
[1721877442498,14.7087,169.97,169.88,45.0]
[1721877442703,10.61631286,169.96,169.87,6.008]
[1721877443299,15.20965931,169.97,169.87,6.008]
[1721877443300,5.8851,169.92,169.87,6.008]
[1721877443472,5.8848,169.93,169.87,11.8948]
[1721877443672,5.8848,169.93,169.88,45.0]
[1721877444296,5.8852,169.92,169.88,45.0]
[1721877444823,29.33,169.95,169.88,45.0]
[1721877444824,5.885,169.93,169.88,45.0]
[1721877445005,5.8851,169.92,169.88,45.0]
[1721877446026,17.7,169.85,169.73,0.8074846]
[1721877446199,5.8913,169.74,169.73,0.8074846]
[1721877446537,29.33,169.75,169.73,0.8074846]
[1721877446841,35.221,169.75,169.73,0.8074846]
[1721877447009,35.72195931,169.75,169.73,0.8074846]
[1721877448235,39.47195931,169.75,169.73,0.8074846]
[1721877449428,38.971,169.75,169.73,0.8074846]
[1721877449716,39.47195931,169.75,169.73,0.8074846]
[1721877449935,38.971,169.75,169.73,0.8074846]
[1721877450229,0.50095931,169.74,169.73,0.8074846]
[1721877450413,38.971,169.75,169.73,0.8074846]
[1721877453022,5.8913,169.74,169.73,0.8074846]
[1721877453331,6.39225931,169.74,169.73,0.8074846]
[1721877453725,5.8913,169.74,169.73,0.8074846]
[1721877454103,5.8909,169.76,169.73,0.8074846]
[1721877454438,33.58095931,169.79,169.73,0.8074846]
[1721877454608,5.8913,169.74,169.73,0.8074846]
[1721877454998,48.30545931,169.79,169.73,0.8074846]
[1721877454999,5.8908,169.76,169.73,0.8074846]
[1721877455423,33.08,169.79,169.73,6.6990846]
[1721877455612,5.8896,169.79,169.73,0.8074846]
[1721877455926,5.8891,169.81,169.73,0.8074846]
[1721877456128,0.50095931,169.87,169.74,21.8552]
[1721877456334,0.50095931,169.94,169.82,5.8885]
[1721877456502,0.50095931,169.94,169.83,7.06552536]
[1721877456707,0.50095931,169.94,169.83,5.8881]
[1721877456903,0.50095931,169.94,169.81,5.8886]
[1721877457407,5.8865,169.88,169.82,7.06591385]
[1721877457721,5.8868,169.87,169.82,1.17741385]
[1721877457924,5.8868,169.87,169.76,1.17738048]
[1721877458100,33.08,169.81,169.73,0.8074846]
[1721877458432,33.08,169.77,169.73,0.8074846]
[1721877458725,33.58095931,169.77,169.73,0.8074846]
[1721877458931,33.08,169.77,169.73,0.8074846]
[1721877459133,0.50095931,169.82,169.73,0.8074846]
[1721877459308,5.8904,169.77,169.73,0.8074846]
[1721877459508,5.8912,169.75,169.73,0.8074846]
[1721877460131,6.39215931,169.75,169.73,0.8074846]
[1721877460522,24.09215931,169.75,169.73,8.46e-05]
[1721877460719,24.09215931,169.75,169.67,6.5184]
[1721877460720,5.8934,169.68,169.67,6.5184]
[1721877461033,14.7295,169.73,169.67,6.5184]
[1721877461034,33.08,169.71,169.67,6.5184]
[1721877461213,0.50095931,169.75,169.67,6.5184]
[1721877462019,5.8932,169.69,169.67,6.5184]
[1721877466908,5.8928,169.7,169.67,6.5184]
[1721877467108,15.22875931,169.75,169.67,6.5184]
[1721877467434,0.50095931,169.75,169.67,6.5184]
[1721877467736,5.8927,169.7,169.67,6.5184]
[1721877467935,39.20620859,169.76,169.67,6.5184]
[1721877468113,5.892,169.73,169.67,6.5184]
[1721877468310,5.892,169.73,169.67,12.4121]
[1721877468523,39.7071679,169.76,169.67,12.4121]
[1721877468524,33.08,169.76,169.67,12.4121]
[1721877468816,38.9706,169.76,169.69,5.8928]
[1721877469014,38.9706,169.76,169.67,6.5184]
[1721877469015,38.9706,169.76,169.68,1.17833442]
[1721877469211,38.9706,169.76,169.67,6.5184]
[1721877469408,33.08,169.76,169.67,6.5184]
[1721877469612,0.50095931,169.75,169.67,6.5184]
[1721877469937,5.8926,169.71,169.67,6.5184]
[1721877470439,5.8915,169.74,169.67,12.4121]
[1721877470624,5.8915,169.74,169.68,5.8933]
[1721877470811,5.8915,169.74,169.67,6.5184]
[1721877471134,5.8917,169.73,169.67,12.4121]
[1721877471637,5.8912,169.75,169.67,6.5184]
[1721877471820,5.8913,169.74,169.67,6.5184]
[1721877472024,33.08,169.76,169.72,5.892]
[1721877472221,33.08,169.8,169.68,1.178451]
[1721877472425,33.08,169.84,169.68,66.178451]
[1721877472738,5.8882,169.83,169.78,6.5342]
[1721877473039,39.5984,169.84,169.78,6.5342]
[1721877473040,5.889,169.81,169.78,6.5342]
[1721877473211,5.8893,169.8,169.78,6.5342]
[1721877473412,33.08,169.84,169.78,6.5342]
[1721877473612,33.08,169.84,169.78,12.4241]
[1721877473613,5.888,169.84,169.78,12.4241]
[1721877473807,11.7795,169.86,169.79,5.8895]
[1721877474012,5.892,169.86,169.82,5.8885]
[1721877474237,5.892,169.86,169.78,6.5342]
[1721877474439,5.892,169.86,169.81,5.8889]
[1721877474643,15.3284,169.94,169.9,6.46]
[1721877474810,254.1,170.08,169.91,45.0]
[1721877474811,33.08,170.01,169.91,45.0]
[1721877475009,38.962,170.01,169.93,15.3482]
[1721877475249,5.8827,169.99,169.93,15.3482]
[1721877475540,11.7744,170.0,169.93,15.3482]
[1721877475754,5.892,169.98,169.93,15.3482]
[1721877476627,5.892,170.0,169.93,15.3482]
[1721877477126,5.8824,170.0,169.93,15.3482]
[1721877478027,33.08,170.01,169.93,15.3482]
[1721877478419,38.9621,170.01,169.93,16.52478806]
[1721877478811,38.9621,170.01,169.93,15.3482]
[1721877479017,33.08,170.01,169.93,15.3482]
[1721877479317,33.08,170.08,169.94,45.0]
[1721877479622,33.08,170.08,169.95,1.17642758]
[1721877479813,33.08,170.08,169.96,1.17642766]
[1721877480015,0.50095931,170.07,169.96,1.17642766]
[1721877480410,18.20095931,170.07,169.93,15.3482]
[1721877480718,33.08,170.03,169.93,15.3482]
[1721877481931,38.9613,170.03,169.93,15.3482]
[1721877482137,5.8817,170.02,169.94,45.0]
[1721877482318,5.8817,170.02,169.95,1.1765423]
[1721877482518,33.08,170.03,169.95,1.1765423]
[1721877482839,33.08,170.03,169.95,46.1765423]
[1721877483140,5.8817,170.02,169.95,46.1765423]
[1721877483333,389.2,170.13,169.96,66.17641332]
[1721877483523,33.08,170.12,169.96,66.17641332]
[1721877483712,5.8797,170.08,169.96,66.17641332]
[1721877483915,5.88,170.07,169.96,66.17641332]
[1721877484139,38.9584,170.12,169.96,66.17641332]
[1721877484335,33.08,170.12,169.97,41.9693]
[1721877484516,33.8874846,170.16,169.97,41.9693]
[1721877484517,33.8874846,170.16,169.99,6.2931]
[1721877484718,5.8786,170.11,170.0,21.17577121]
[1721877484943,5.8793,170.09,170.01,45.0]
[1721877485124,5.8787,170.11,170.01,45.0]
[1721877485325,15.19465931,170.15,170.01,45.0]
[1721877485526,33.08,170.11,170.01,45.0]
[1721877485940,5.8784,170.12,170.01,45.0]
[1721877486443,33.08,170.14,170.02,1.17589808]
[1721877486837,5.878,170.13,170.02,1.17589808]
[1721877487142,33.8874846,170.16,170.03,21.5085]
[1721877487356,5.8776,170.14,170.04,66.17560185]
[1721877487529,5.8779,170.13,170.04,66.17560185]
[1721877487847,5.8774,170.15,170.05,1.17570746]
[1721877488922,5.8775,170.14,170.05,1.17570746]
[1721877489548,5.8773,170.15,170.05,1.17570746]
[1721877490346,5.8776,170.14,170.05,1.17570746]
[1721877491153,33.8874846,170.16,170.05,1.17570746]
[1721877491626,5.8774,170.15,170.05,1.17570746]
[1721877492158,0.8074846,170.16,170.05,1.17570746]
[1721877492346,6.6842846,170.16,170.05,1.17570746]
[1721877492940,0.8074846,170.16,170.05,1.17570746]
[1721877493264,5.8772,170.15,170.05,1.17570746]
[1721877493753,0.8074846,170.16,170.05,1.17570746]
[1721877494742,5.878,170.13,170.05,1.17570746]
[1721877495044,0.8074846,170.16,170.05,1.17570746]
[1721877495243,0.8074846,170.16,170.03,21.5085]
[1721877495244,5.8786,170.11,170.03,21.5085]
[1721877495651,33.58095931,170.14,170.03,21.5085]
[1721877495859,0.50095931,170.14,170.03,21.5085]
[1721877496036,38.9576,170.14,170.03,22.68431998]
[1721877496234,5.8785,170.11,170.03,21.5085]
[1721877496468,0.50095931,170.14,170.03,21.5085]
[1721877496635,0.50095931,170.14,170.04,45.0]
[1721877496836,5.8782,170.12,170.04,45.0]
[1721877497348,15.4997846,170.16,170.04,45.0]
[1721877498243,16.00074391,170.16,170.04,45.0]
[1721877498444,5.8782,170.13,170.04,45.0]
[1721877499039,5.8778,170.13,170.04,46.17566539]
[1721877499239,5.8782,170.12,170.04,45.0]
[1721877499659,0.8074846,170.16,170.06,15.5018]
[1721877499842,0.8074846,170.16,170.07,72.59213531]
[1721877500042,0.8074846,170.16,170.08,1.17531664]
[1721877501050,0.8074846,170.16,170.09,21.9469]
[1721877501359,0.8074846,170.16,170.1,66.17510202]
[1721877501564,0.8074846,170.16,170.11,1.17510061]
[1721877504168,0.8074846,170.16,170.09,21.9469]
[1721877504530,0.8074846,170.16,170.1,1.17543677]
[1721877504735,0.8074846,170.16,170.09,21.9469]
[1721877505261,0.8074846,170.16,170.1,1.17543594]
[1721877505562,0.8074846,170.16,170.1,45.0]
[1721877506356,0.8074846,170.16,170.11,1.17534358]
[1721877506553,0.8074846,170.16,170.1,45.0]
[1721877507062,6.6842846,170.16,170.1,45.0]
[1721877507274,0.8074846,170.16,170.1,45.0]
[1721877507444,6.6845846,170.16,170.1,45.0]
[1721877508165,0.8074846,170.16,170.1,45.0]
[1721877508545,5.8785,170.12,170.09,6.614]
[1721877508738,1.30844391,170.16,170.05,15.7966]
[1721877508947,14.6931,170.15,170.05,22.1999]
[1721877509149,0.50095931,170.14,170.05,22.1999]
[1721877510662,5.8782,170.12,170.05,22.1999]
[1721877510858,1.30844391,170.16,170.05,22.1999]
[1721877511050,0.8074846,170.16,170.06,46.17575177]
[1721877511442,5.8775,170.14,170.06,46.17575177]
[1721877512258,5.8782,170.12,170.06,46.17575177]
[1721877512465,5.8789,170.1,170.05,22.1999]
[1721877512763,5.8781,170.13,170.05,22.1999]
[1721877513140,5.8787,170.11,170.05,22.1999]
[1721877513340,14.695,170.13,170.05,22.1999]
[1721877513636,5.8793,170.09,170.05,22.1999]
[1721877514042,14.695,170.13,170.05,22.1999]
[1721877514242,14.6977,170.1,169.99,16.1688]
[1721877514462,14.6977,170.1,169.94,22.2377]
[1721877514463,51.28095931,170.09,169.94,22.2377]
[1721877514667,33.08,170.05,169.94,22.2377]
[1721877514863,5.8821,170.01,169.94,22.2377]
[1721877515069,33.08,170.05,169.94,22.2377]
[1721877515468,33.08,170.05,169.95,1.17646421]
[1721877515786,5.881,170.04,169.95,1.17646421]
[1721877515978,5.8813,170.03,169.95,20.0]
[1721877516972,33.08,170.09,169.96,1.17645002]
[1721877517356,5.8806,170.05,169.96,46.17645002]
[1721877517672,5.8817,170.02,169.96,45.0]
[1721877517974,5.8821,170.01,169.95,45.0]
[1721877518455,0.50095931,170.05,169.95,45.0]
[1721877518456,5.8824,170.0,169.95,45.0]
[1721877518872,5.8819,170.02,169.95,45.0]
[1721877519170,33.58095931,170.05,169.94,22.2377]
[1721877519171,0.50095931,170.01,169.94,22.2377]
[1721877519475,5.883,169.98,169.94,22.2377]
[1721877520354,5.8825,170.0,169.94,22.2377]
[1721877520551,33.08,170.01,169.9,6.5092]
[1721877520758,0.50095931,170.0,169.9,6.5092]
[1721877521168,45.50095931,170.0,169.9,6.5092]
[1721877521762,77.90735931,170.0,169.9,6.5092]
[1721877521969,5.885,169.93,169.9,6.5092]
[1721877522148,33.08,169.97,169.9,6.5092]
[1721877522361,5.884,169.96,169.9,6.5092]
[1721877523382,5.8841,169.95,169.9,6.5092]
[1721877523592,5.8823,170.0,169.9,6.5092]
[1721877523891,5.8831,169.98,169.91,45.0]
[1721877524090,5.8834,169.97,169.9,6.5092]
[1721877524389,5.8838,169.96,169.9,6.5092]
[1721877524673,5.8834,169.97,169.9,6.5092]
[1721877524984,5.8839,169.96,169.9,6.5092]
[1721877525160,5.8833,169.98,169.9,6.5092]
[1721877525360,5.8825,170.0,169.91,45.0]
[1721877526059,0.50095931,170.05,169.91,45.0]
[1721877526259,5.8809,170.04,169.92,1.17668975]
[1721877526575,5.882,170.01,169.93,1.17651199]
[1721877526879,5.882,170.01,169.91,46.17650542]
[1721877527080,0.50095931,170.06,169.91,46.17650542]
[1721877528157,5.8817,170.02,169.92,20.0]
[1721877528377,5.8817,170.02,169.93,46.17649777]
[1721877528755,5.8817,170.02,169.94,26.2926]
[1721877528958,5.8817,170.02,169.95,46.17639486]
[1721877529584,6.1307777,170.09,169.96,16.66969585]
[1721877529756,12.0100777,170.09,169.97,71.2926]
[1721877529961,14.6944,170.14,169.99,6.2926]
[1721877530180,5.8785,170.12,170.01,15.4933]
[1721877530377,5.8785,170.11,170.02,46.17586055]
[1721877530815,30.7774846,170.16,170.03,20.0]
[1721877530964,5.8782,170.12,170.04,52.46840532]
[1721877531169,30.7774846,170.16,170.05,1.17580581]
[1721877531984,5.8782,170.12,170.05,1.17580581]
[1721877532960,5.8785,170.11,170.05,1.17580581]
[1721877533682,5.878,170.13,170.05,1.17580581]
[1721877533993,30.7774846,170.16,170.05,1.17580581]
[1721877534298,5.8778,170.14,170.05,1.17580581]
[1721877534580,5.8778,170.13,170.05,1.17580581]
[1721877534772,0.50095931,170.12,170.04,51.2926]
[1721877535171,0.50095931,170.14,170.04,51.2926]
[1721877535489,5.8802,170.07,170.04,6.2926]
[1721877535665,5.8795,170.08,170.04,6.2926]
[1721877536282,5.8792,170.1,170.04,6.2926]
[1721877536779,5.8785,170.12,170.05,45.0]
[1721877536981,45.4700846,170.16,170.05,46.17583438]
[1721877537190,5.8781,170.13,170.05,46.17583438]
[1721877537772,5.8782,170.12,170.05,46.17583438]
[1721877537989,0.50095931,170.15,170.05,45.0]
[1721877538977,5.8789,170.1,170.05,45.0]
[1721877539687,5.8794,170.09,170.04,6.2926]
[1721877539880,5.8796,170.08,170.04,6.2926]
[1721877540069,0.50095931,170.15,170.04,6.2926]
[1721877540274,45.97104391,170.16,170.05,46.17584592]
[1721877540893,5.8785,170.11,170.05,45.0]
[1721877541086,5.8789,170.1,170.05,45.0]
[1721877541571,5.8785,170.11,170.05,45.0]
[1721877542291,63.67104391,170.16,170.04,6.2926]
[1721877542501,45.97104391,170.16,170.04,6.2926]
[1721877542794,5.8786,170.11,170.05,45.0]
[1721877544575,30.7774846,170.16,170.05,45.0]
[1721877544972,5.8783,170.12,170.05,45.0]
[1721877545696,30.7774846,170.16,170.05,46.17568864]
[1721877546001,0.8074846,170.16,170.06,15.5357]
[1721877546198,0.8074846,170.16,170.07,46.17558371]
[1721877546381,0.8074846,170.16,170.08,6.392]
[1721877546697,0.8074846,170.16,170.09,46.17544374]
[1721877550183,0.8074846,170.16,170.1,21.5599]
[1721877550498,0.8074846,170.16,170.11,46.17511512]
[1721877552790,0.8074846,170.16,170.12,20.0]
[1721877552995,0.8074846,170.16,170.13,45.0]
[1721877553599,0.8074846,170.16,170.15,6.1116]
[1721877553774,0.8074846,170.16,170.15,51.1116]
[1721877553980,0.8074846,170.16,170.15,52.28665349]
[1721877555000,0.8074846,170.16,170.15,51.1116]
[1721877555180,14.6811,170.29,170.16,15.4482]
[1721877555181,29.9,170.27,170.16,15.4482]
[1721877555504,29.9,170.27,170.17,45.0]
[1721877555808,5.874,170.25,170.18,1.1748614]
[1721877556206,36.69618469,170.32,170.18,1.1748614]
[1721877556207,44.8405846,170.33,170.19,6.178]
[1721877556411,29.9,170.29,170.2,46.17471411]
[1721877557301,5.873,170.27,170.2,46.17471411]
[1721877557699,35.7725,170.29,170.2,46.17471411]
[1721877557999,5.8725,170.29,170.21,16.1522]
[1721877558198,5.8725,170.29,170.22,46.17457237]
[1721877558399,29.9,170.32,170.22,46.17457237]
[1721877558604,5.873,170.27,170.22,46.17457237]
[1721877558802,5.8726,170.28,170.22,46.17457237]
[1721877559205,5.873,170.27,170.22,46.17457237]
[1721877559406,5.8729,170.28,170.22,45.0]
[1721877559707,5.8733,170.27,170.22,45.0]
[1721877559908,29.9,170.3,170.22,45.0]
[1721877560215,29.9,170.3,170.24,6.4902]
[1721877560396,29.9,170.3,170.24,7.66467908]
[1721877560598,29.9,170.3,170.25,45.0]
[1721877560828,35.61673884,170.3,170.25,45.0]
[1721877561007,29.74473884,170.3,170.25,45.0]
[1721877561212,0.8074846,170.33,170.25,45.0]
[1721877561213,36.5784846,170.33,170.25,45.0]
[1721877561512,30.7074846,170.33,170.25,45.0]
[1721877561704,36.5785846,170.33,170.25,45.0]
[1721877562410,30.7074846,170.33,170.25,45.0]
[1721877562616,30.7074846,170.33,170.25,46.17440191]
[1721877563116,5.8716,170.31,170.25,46.17440191]
[1721877563492,30.7074846,170.33,170.25,45.0]
[1721877563692,30.7074846,170.33,170.26,1.17428785]
[1721877563894,0.8074846,170.33,170.25,46.17416982]
[1721877564096,6.6784846,170.33,170.25,46.17416982]
[1721877564411,6.6783846,170.33,170.25,46.17416982]
[1721877564604,0.8074846,170.33,170.25,46.17416982]
[1721877566406,6.6784846,170.33,170.25,46.17416982]
[1721877566815,0.8074846,170.33,170.26,15.4802]
[1721877567012,0.8074846,170.33,170.27,45.0]
[1721877567199,6.6784846,170.33,170.27,45.0]
[1721877567705,5.8717,170.31,170.27,45.0]
[1721877568803,5.872,170.3,170.26,15.4802]
[1721877569206,0.8074846,170.33,170.26,15.4802]
[1721877569808,6.6786846,170.33,170.26,15.4802]
[1721877570009,0.8074846,170.33,170.26,16.65454531]
[1721877570509,0.8074846,170.33,170.26,15.4802]
[1721877570821,6.6784846,170.33,170.26,15.4802]
[1721877571019,6.6784846,170.33,170.27,45.0]
[1721877571197,5.8714,170.32,170.27,45.0]
[1721877571710,6.12911372,170.39,170.29,22.5028]
[1721877571917,29.9,170.45,170.31,6.1929]
[1721877572217,29.9,170.45,170.32,21.17372553]
[1721877572515,29.9,170.42,170.31,6.1929]
[1721877572721,5.8706,170.34,170.31,6.1929]
[1721877574412,29.9,170.39,170.31,6.1929]
[1721877574618,29.9,170.42,170.32,45.0]
[1721877574814,5.8694,170.38,170.32,45.0]
[1721877575120,5.8695,170.37,170.32,45.0]
[1721877575421,30.40095931,170.42,170.32,45.0]
[1721877575846,5.8692,170.38,170.32,45.0]
[1721877576007,30.40095931,170.42,170.21,40.0]
[1721877576008,29.9,170.35,170.22,6.1262]
[1721877576208,44.5782,170.32,170.22,6.1262]
[1721877576407,5.874,170.24,170.22,6.1262]
[1721877576719,5.8744,170.23,170.22,6.1262]
[1721877577021,0.50095931,170.28,170.22,6.1262]
[1721877577209,5.8734,170.26,170.22,6.1262]
[1721877577413,29.9,170.29,170.22,6.1262]
[1721877577728,5.873,170.27,170.22,6.1262]
[1721877577909,0.50095931,170.28,170.22,6.1262]
[1721877578510,5.8738,170.25,170.22,6.1262]
[1721877578810,5.8744,170.23,170.22,6.1262]
[1721877579010,5.874,170.25,170.22,6.1262]
[1721877579511,29.9,170.29,170.22,6.1262]
[1721877579711,5.8718,170.31,170.22,6.1262]
[1721877580031,35.7707,170.34,170.23,1.17451341]
[1721877580210,5.8716,170.31,170.24,1.17445089]
[1721877580922,5.8716,170.31,170.23,45.0]
[1721877581133,5.8713,170.32,170.24,1.17446617]
[1721877581708,29.9,170.34,170.23,46.17435022]
[1721877581927,29.9,170.34,170.23,45.0]
[1721877582113,29.9,170.34,170.24,1.17436458]